Workbook

Sheet Hoja1
D1: Morosidad según tipo y modalidad de crédito por Empresa Bancaria
D2: 2012-12-31
D3: (En porcentaje)
D5: Concepto | E5: B. Continental | F5: B. de Comercio | G5: B. de Crédito del Perú (con sucursales en el exterior) | H5: B. Financiero | I5: B. Interamericano de Finanzas | J5: Scotiabank Perú (con sucursales en el exterior) | K5: Citibank | L5: Interbank (con sucursales en el exterior) | M5: Mibanco | N5: HSBC Bank Perú | O5: B. Falabella Perú | P5: B. Santander Perú | Q5: B. Ripley | R5: B. Azteca Perú | S5: Deutsche Bank Perú | T5: B. Cencosud | U5: TOTAL BANCA MÚLTIPLE
D6: Créditos corporativos | E6: 0.002731066391 | F6: 18.47059944 | G6: 0.01846126869 | H6: 0.01495713505 | I6: 0.0002910520812 | J6: 7.280458453e-10 | K6: 0 | L6: 0.002545464405 | M6: 0 | N6: 0 | O6: 0 | P6: 0 | Q6: 0 | R6: 0 | S6: 0 | T6: 0 | U6: 0.0122318714
D7: Tarjetas de crédito | E7: 0 | F7: 0 | G7: 0.1817397527 | H7: 0 | I7: 0 | J7: 0 | K7: 0 | L7: 0 | M7: 0 | N7: 0 | O7: 0 | P7: 0 | Q7: 0 | R7: 0 | S7: 0 | T7: 0 | U7: 0.1180697844
D8: Descuentos | E8: 0 | F8: 0 | G8: 0 | H8: 0 | I8: 0 | J8: 0 | K8: 0 | L8: 0.05328991668 | M8: 0 | N8: 0 | O8: 0 | P8: 0 | Q8: 0 | R8: 0 | S8: 0 | T8: 0 | U8: 0.007207821421
D9: Préstamos | E9: 0 | F9: 100 | G9: 6.046976139e-08 | H9: 0 | I9: 0 | J9: 1.697468242e-09 | K9: 0 | L9: 0 | M9: 0 | N9: 0 | O9: 0 | P9: 0 | Q9: 0 | R9: 0 | S9: 0 | T9: 0 | U9: 0.007811292048
D10: Factoring | E10: 0.0690716958 | F10: 0 | G10: 0 | H10: 0 | I10: 0 | J10: 0 | K10: 0 | L10: 0 | M10: 0 | N10: 0 | O10: 0 | P10: 0 | Q10: 0 | R10: 0 | S10: 0 | T10: 0 | U10: 0.01211836885
D11: Arrendamiento financiero y Lease-back | E11: 0 | F11: 0 | G11: 3.634865443e-05 | H11: 0 | I11: 0 | J11: 0 | K11: 0 | L11: 0 | M11: 0 | N11: 0 | O11: 0 | P11: 0 | Q11: 0 | R11: 0 | S11: 0 | T11: 0 | U11: 1.861901928e-05
D12: Comercio exterior | E12: 0 | F12: 0 | G12: 0 | H12: 0 | I12: 0 | J12: 0 | K12: 0 | L12: 0 | M12: 0 | N12: 0 | O12: 0 | P12: 0 | Q12: 0 | R12: 0 | S12: 0 | T12: 0 | U12: 0
D13: Otros 1/ | E13: 0 | F13: 0.1018816865 | G13: 0.1207720728 | H13: 0.04638235787 | I13: 0.09082479419 | J13: 0 | K13: 0 | L13: 0.0001130214404 | M13: 0 | N13: 0 | O13: 0 | P13: 0 | Q13: 0 | R13: 0 | S13: 0 | T13: 0 | U13: 0.07994910964
D15: Créditos a grandes empresas | E15: 0.6833959002 | F15: 0.4904235161 | G15: 0.1567371165 | H15: 0.004508030289 | I15: 0.1241942486 | J15: 0.1634500727 | K15: 0.4260557632 | L15: 0.2809371717 | M15: 0 | N15: 5.402075399 | O15: 0 | P15: 0.1022468877 | Q15: 0 | R15: 0 | S15: 0 | T15: 0 | U15: 0.3918789275
D16: Tarjetas de crédito | E16: 1.235566235 | F16: 0 | G16: 0 | H16: 5.702930824 | I16: 1.448699531 | J16: 1.453617404 | K16: 0 | L16: 0 | M16: 0 | N16: 0 | O16: 0 | P16: 0 | Q16: 0 | R16: 0 | S16: 0 | T16: 0 | U16: 0.5413609166
D17: Descuentos | E17: 0.1741494141 | F17: 6.834586441 | G17: 0.3296818812 | H17: 0 | I17: 1.313273127 | J17: 0.09799277989 | K17: 0.3192434482 | L17: 0.7056191993 | M17: 0 | N17: 2.408014548 | O17: 0 | P17: 0 | Q17: 0 | R17: 0 | S17: 0 | T17: 0 | U17: 0.3760373287
D18: Préstamos | E18: 1.126565408 | F18: 0 | G18: 0.0339684662 | H18: 0.008471548687 | I18: 0.04051950743 | J18: 0.3638731603 | K18: 0 | L18: 0.2132616588 | M18: 0 | N18: 9.107588926 | O18: 0 | P18: 0 | Q18: 0 | R18: 0 | S18: 0 | T18: 0 | U18: 0.5603256689
D19: Factoring | E19: 0.8078723763 | F19: 0 | G19: 0 | H19: 0 | I19: 0 | J19: 0 | K19: 0 | L19: 0 | M19: 0 | N19: 0 | O19: 0 | P19: 0 | Q19: 0 | R19: 0 | S19: 0 | T19: 0 | U19: 0.2312253473
D20: Arrendamiento financiero y Lease-back | E20: 0.1476645465 | F20: 0 | G20: 0.271169978 | H20: 0 | I20: 0.09399200582 | J20: 0.01551607451 | K20: 0 | L20: 0.06109591815 | M20: 0 | N20: 0.007651739888 | O20: 0 | P20: 0.0557363253 | Q20: 0 | R20: 0 | S20: 0 | T20: 0 | U20: 0.1620359574
D21: Comercio exterior | E21: 0 | F21: 0 | G21: 0.3266820123 | H21: 0 | I21: 0 | J21: 0 | K21: 6.436006536 | L21: 0.4938280175 | M21: 0 | N21: 3.29571018 | O21: 0 | P21: 0.8385203392 | Q21: 0 | R21: 0 | S21: 0 | T21: 0 | U21: 0.2491994722
D22: Otros 1/ | E22: 2.769488219 | F22: 0.03092759799 | G22: 0.005272243989 | H22: 0.000194356862 | I22: 0.3444488884 | J22: 0.1023046397 | K22: 0 | L22: 4.391069575 | M22: 0 | N22: 4.097863509 | O22: 0 | P22: 0 | Q22: 0 | R22: 0 | S22: 0 | T22: 0 | U22: 0.7944988592
D24: Créditos a medianas empresas | E24: 2.008652452 | F24: 10.34777702 | G24: 2.690635664 | H24: 2.815901793 | I24: 1.790216516 | J24: 3.163550109 | K24: 0 | L24: 1.740063909 | M24: 3.761018104 | N24: 7.52530768 | O24: 0 | P24: 0.7641816039 | Q24: 0 | R24: 0 | S24: 0 | T24: 0 | U24: 2.496173451
D25: Tarjetas de crédito | E25: 4.002054476 | F25: 9.834578995 | G25: 7.957596726 | H25: 0 | I25: 3.845519725 | J25: 14.45891469 | K25: 0 | L25: 11.49177731 | M25: 0 | N25: 0 | O25: 0 | P25: 0 | Q25: 0 | R25: 0 | S25: 0 | T25: 0 | U25: 7.028840629
D26: Descuentos | E26: 0.8556737542 | F26: 8.743669802 | G26: 0.7238692685 | H26: 0.9984804817 | I26: 1.773022286 | J26: 3.618419888 | K26: 0 | L26: 2.635535884 | M26: 0 | N26: 1.555685516 | O26: 0 | P26: 5.975788731 | Q26: 0 | R26: 0 | S26: 0 | T26: 0 | U26: 1.503329556
D27: Préstamos | E27: 2.344481337 | F27: 9.226724952 | G27: 3.42225152 | H27: 2.777310697 | I27: 2.127465372 | J27: 3.432680778 | K27: 0 | L27: 2.050744956 | M27: 3.994022289 | N27: 10.5303345 | O27: 0 | P27: 0.3990033926 | Q27: 0 | R27: 0 | S27: 0 | T27: 0 | U27: 2.919912701
D28: Factoring | E28: 0.1997361332 | F28: 0 | G28: 0 | H28: 0 | I28: 0 | J28: 0 | K28: 0 | L28: 1.086533894 | M28: 0 | N28: 0 | O28: 0 | P28: 0 | Q28: 0 | R28: 0 | S28: 0 | T28: 0 | U28: 0.2424396933
D29: Arrendamiento financiero y Lease-back | E29: 1.355745891 | F29: 5.051510162 | G29: 0.5498650862 | H29: 1.998802863 | I29: 1.084192668 | J29: 1.910736138 | K29: 0 | L29: 0.6055668601 | M29: 2.923334292 | N29: 4.859845072 | O29: 0 | P29: 0 | Q29: 0 | R29: 0 | S29: 0 | T29: 0 | U29: 1.215048462
D30: Comercio exterior | E30: 0.04708317005 | F30: 24.21688196 | G30: 1.743190383 | H30: 4.13654245 | I30: 2.36256956 | J30: 4.084049156 | K30: 0 | L30: 3.6485136 | M30: 0 | N30: 10.30564764 | O30: 0 | P30: 4.49095548 | Q30: 0 | R30: 0 | S30: 0 | T30: 0 | U30: 2.306475516
D31: Otros 1/ | E31: 3.829993871 | F31: 4.661847593 | G31: 1.855613035 | H31: 36.2316344 | I31: 3.450164818 | J31: 9.698875118 | K31: 0 | L31: 35.60450739 | M31: 0 | N31: 4.140008999 | O31: 0 | P31: 4.80432063 | Q31: 0 | R31: 0 | S31: 0 | T31: 0 | U31: 3.62042046
D33: Créditos pequeñas empresas | E33: 3.554998089 | F33: 6.48286817 | G33: 6.143340126 | H33: 4.549338644 | I33: 2.219193933 | J33: 5.407296816 | K33: 99.99963281 | L33: 4.134503453 | M33: 5.474605009 | N33: 5.274135062 | O33: 0 | P33: 0.1811503017 | Q33: 0 | R33: 0 | S33: 0 | T33: 0 | U33: 5.336236585
D34: Tarjetas de crédito | E34: 3.297893375 | F34: 37.26107593 | G34: 6.143369018 | H34: 3.41399274 | I34: 2.45433136 | J34: 7.245251953 | K34: 0 | L34: 29.37551714 | M34: 0 | N34: 0 | O34: 0 | P34: 0 | Q34: 0 | R34: 0 | S34: 0 | T34: 0 | U34: 5.831577071
D35: Descuentos | E35: 0.4894448183 | F35: 3.549715233 | G35: 1.748865038 | H35: 3.700819205 | I35: 2.057350088 | J35: 5.959957163 | K35: 100 | L35: 3.276187555 | M35: 0 | N35: 0 | O35: 0 | P35: 0 | Q35: 0 | R35: 0 | S35: 0 | T35: 0 | U35: 2.809866144
D36: Préstamos | E36: 4.163994158 | F36: 6.555199759 | G36: 5.817641725 | H36: 4.428609626 | I36: 2.869392378 | J36: 5.093465978 | K36: 0 | L36: 4.348823839 | M36: 5.535918519 | N36: 23.15587665 | O36: 0 | P36: 0 | Q36: 0 | R36: 0 | S36: 0 | T36: 0 | U36: 5.209291056
D37: Factoring | E37: 0 | F37: 0 | G37: 0 | H37: 0 | I37: 0 | J37: 0 | K37: 0 | L37: 0 | M37: 0 | N37: 0 | O37: 0 | P37: 0 | Q37: 0 | R37: 0 | S37: 0 | T37: 0 | U37: 0
D38: Arrendamiento financiero y Lease-back | E38: 3.006512481 | F38: 4.423151614 | G38: 8.567767943 | H38: 25.62949717 | I38: 1.132952095 | J38: 6.053698521 | K38: 0 | L38: 2.056199366 | M38: 2.985251568 | N38: 0 | O38: 0 | P38: 0.1988065557 | Q38: 0 | R38: 0 | S38: 0 | T38: 0 | U38: 4.811276494
D39: Comercio exterior | E39: 0.02244621517 | F39: 0 | G39: 4.756310611 | H39: 0 | I39: 4.831052022 | J39: 4.894816954 | K39: 0 | L39: 1.818013857 | M39: 0 | N39: 0 | O39: 0 | P39: 0 | Q39: 0 | R39: 0 | S39: 0 | T39: 0 | U39: 3.100185143
D40: Otros 1/ | E40: 2.717606139 | F40: 4.237677544 | G40: 39.0624137 | H40: 14.24063816 | I40: 2.979316639 | J40: 37.58625944 | K40: 0 | L40: 31.25263454 | M40: 100 | N40: 0.2944406839 | O40: 0 | P40: 0 | Q40: 0 | R40: 0 | S40: 0 | T40: 0 | U40: 9.270757316
D42: Créditos a microempresas | E42: 0.8063694592 | F42: 4.038163632 | G42: 1.888986766 | H42: 3.247836817 | I42: 0.7705631103 | J42: 3.485077688 | K42: 0 | L42: 4.151406544 | M42: 3.231723506 | N42: 2.318490058 | O42: 0 | P42: 0 | Q42: 100 | R42: 0 | S42: 0 | T42: 0 | U42: 2.689853387
D43: Tarjetas de crédito | E43: 1.538593161 | F43: 0 | G43: 2.965145172 | H43: 4.312117144 | I43: 0.6183153788 | J43: 4.052365839 | K43: 0 | L43: 4.405899948 | M43: 0 | N43: 0 | O43: 0 | P43: 0 | Q43: 0 | R43: 0 | S43: 0 | T43: 0 | U43: 2.824379216
D44: Descuentos | E44: 0 | F44: 0 | G44: 0.839475349 | H44: 0 | I44: 0.04430087242 | J44: 1.807657795 | K44: 0 | L44: 0.3621675707 | M44: 0 | N44: 0 | O44: 0 | P44: 0 | Q44: 0 | R44: 0 | S44: 0 | T44: 0 | U44: 0.5839575441
D45: Préstamos | E45: 1.061718488 | F45: 4.305003547 | G45: 0.576324772 | H45: 3.23073403 | I45: 0.1118966466 | J45: 3.408317302 | K45: 0 | L45: 4.887152169 | M45: 3.264782573 | N45: 0.551316981 | O45: 0 | P45: 0 | Q45: 100 | R45: 0 | S45: 0 | T45: 0 | U45: 2.799754832
D46: Factoring | E46: 0 | F46: 0 | G46: 0 | H46: 0 | I46: 0 | J46: 0 | K46: 0 | L46: 0 | M46: 0 | N46: 0 | O46: 0 | P46: 0 | Q46: 0 | R46: 0 | S46: 0 | T46: 0 | U46: 0
D47: Arrendamiento financiero y Lease-back | E47: 0.2266174002 | F47: 4.666949358 | G47: 0.3987957491 | H47: 23.3521889 | I47: 0.929895076 | J47: 1.726229859 | K47: 0 | L47: 0.6878414696 | M47: 0.4362434213 | N47: 0 | O47: 0 | P47: 0 | Q47: 0 | R47: 0 | S47: 0 | T47: 0 | U47: 0.4888168225
D48: Comercio exterior | E48: 0 | F48: 0 | G48: 0 | H48: 0 | I48: 0.007769645235 | J48: 0.1509823836 | K48: 0 | L48: 0 | M48: 0 | N48: 0 | O48: 0 | P48: 0 | Q48: 0 | R48: 0 | S48: 0 | T48: 0 | U48: 0.02903680376
D49: Otros 1/ | E49: 0.5864454629 | F49: 12.0548002 | G49: 28.52490597 | H49: 99.83709172 | I49: 14.96491866 | J49: 13.18126979 | K49: 0 | L49: 34.23360515 | M49: 0 | N49: 73.65978337 | O49: 0 | P49: 0 | Q49: 0 | R49: 0 | S49: 0 | T49: 0 | U49: 7.412758778
D51: Créditos de consumo | E51: 2.175565371 | F51: 0.7546454479 | G51: 3.082014783 | H51: 1.527743526 | I51: 2.775685408 | J51: 1.882838504 | K51: 4.303395368 | L51: 3.708544242 | M51: 2.30691573 | N51: 1.447972515 | O51: 3.384842766 | P51: 0 | Q51: 5.094365736 | R51: 6.949399289 | S51: 0 | T51: 0.2246726168 | U51: 2.982348435
D52: Tarjetas de crédito | E52: 2.56692655 | F52: 1.898097607 | G52: 4.72089585 | H52: 3.128550972 | I52: 2.042279531 | J52: 2.859173688 | K52: 4.734904138 | L52: 4.917981259 | M52: 5.702760192 | N52: 2.82952274 | O52: 3.372319997 | P52: 0 | Q52: 5.308035338 | R52: 6.400335427 | S52: 0 | T52: 0.2246726168 | U52: 4.0839386
D53: Préstamos | E53: 1.967845966 | F53: 0.7505101645 | G53: 2.061895969 | H53: 1.040196801 | I53: 1.976679221 | J53: 1.331891199 | K53: 3.897276832 | L53: 2.76179646 | M53: 2.160754931 | N53: 1.236079754 | O53: 3.655879183 | P53: 0 | Q53: 4.110732072 | R53: 6.966655204 | S53: 0 | T53: 0 | U53: 2.158802628
D54: Préstamos revolventes | E54: 0 | F54: 0 | G54: 0 | H54: 0 | I54: 0 | J54: 1.873492532 | K54: 100 | L54: 2.100658299 | M54: 0 | N54: 0 | O54: 0 | P54: 0 | Q54: 0 | R54: 0 | S54: 0 | T54: 0 | U54: 2.100560837
D55: Préstamos no revolventes | E55: 1.967845966 | F55: 0.7505101645 | G55: 2.061895969 | H55: 1.040196801 | I55: 1.976679221 | J55: 1.33164962 | K55: 3.897260176 | L55: 4.474244954 | M55: 2.160754931 | N55: 1.236079754 | O55: 3.655879183 | P55: 0 | Q55: 4.110732072 | R55: 6.966655204 | S55: 0 | T55: 0 | U55: 2.168045545
D56: Préstamos autos | E56: 1.765105975 | F56: 1.331979268 | G56: 2.044050983 | H56: 3.333742556 | I56: 1.586925152 | J56: 1.45752657 | K56: 0 | L56: 6.808144548 | M56: 0 | N56: 2.193583856 | O56: 2.994767807 | P56: 0 | Q56: 100 | R56: 0 | S56: 0 | T56: 0 | U56: 2.733990154
D57: Arrendamiento financiero y Lease-back | E57: 0 | F57: 0 | G57: 0 | H57: 0 | I57: 0 | J57: 0 | K57: 0 | L57: 0 | M57: 0 | N57: 0 | O57: 0 | P57: 0 | Q57: 0 | R57: 0 | S57: 0 | T57: 0 | U57: 0
D58: Otros 1/ | E58: 0.02557120073 | F58: 0.4311006099 | G58: -45.7128263 | H58: 24.04143061 | I58: 91.44103931 | J58: 76.70536893 | K58: 0.002044098117 | L58: 0.9902267902 | M58: 0 | N58: 0 | O58: 0 | P58: 0 | Q58: 0 | R58: 0 | S58: 0 | T58: 0 | U58: 18.45628066
D60: Créditos hipotecarios para vivienda | E60: 0.4676110569 | F60: 3.444737138 | G60: 1.124373185 | H60: 1.327046442 | I60: 0.2782695854 | J60: 0.841484744 | K60: 0.03730451838 | L60: 0.9504991664 | M60: 1.378083372 | N60: 0.3490022398 | O60: 2.454379837 | P60: 0 | Q60: 0 | R60: 0 | S60: 0 | T60: 0 | U60: 0.8217096608
D61: Préstamos | E61: 0.4724085647 | F61: 0 | G61: 1.115014615 | H61: 2.09131267 | I61: 0.3094115722 | J61: 0.8467923594 | K61: 0.03730451838 | L61: 0.9001050519 | M61: 1.373740119 | N61: 0.3490022398 | O61: 3.732458922 | P61: 0 | Q61: 0 | R61: 0 | S61: 0 | T61: 0 | U61: 0.8058892901
D62: Préstamos Mivivienda | E62: 0.4143482689 | F62: 4.165811555 | G62: 1.18037025 | H62: 0.6084879225 | I62: 0.06687984764 | J62: 0.8014247214 | K62: 0 | L62: 1.039270649 | M62: 1.490909981 | N62: 0 | O62: 1.782745491 | P62: 0 | Q62: 0 | R62: 0 | S62: 0 | T62: 0 | U62: 0.9132869741
D63: Otros 1/ | E63: 0 | F63: 0 | G63: 0 | H63: 0.002989514907 | I63: 0 | J63: 0 | K63: 0 | L63: 0 | M63: 0 | N63: 0 | O63: 0 | P63: 0 | Q63: 0 | R63: 0 | S63: 0 | T63: 0 | U63: 0.002989514907
D65: Total Créditos Directos | E65: 1.190472546 | F65: 2.175854877 | G65: 1.679423472 | H65: 1.99526876 | I65: 0.9880465361 | J65: 1.772775394 | K65: 1.668228831 | L65: 1.838743047 | M65: 4.479004838 | N65: 2.797953029 | O65: 3.376945034 | P65: 0.1285816442 | Q65: 5.112429736 | R65: 6.949399289 | S65: 0 | T65: 0.2246726168 | U65: 1.753178
D67: Nota: Información obtenida del Balance de Comprobación.
D68: La información contenida en este cuadro se complementa con la estructura de los créditos según tipo y modalidad que se encuentra en el siguiente enlace:
D69: https://intranet1.sbs.gob.pe/estadistica/financiera/2012/Diciembre/B-2389-di2012.XLS
D72: Morosidad (escenario base)
E73: 0 | F73: 1 | G73: 2 | H73: 3 | I73: 4 | J73: 5 | K73: 6 | L73: 7 | M73: 8 | N73: 9 | O73: 10
A74: Crec. hipot/consumo | B74: 0.08 | D74: Créditos corporativos | E74: =VLOOKUP(D74,$D$6:$U$65,18,FALSE) -> 0.0122318714 | F74: =$E74+$B$75*F$73 -> 0.0522318714 | G74: =$E74+$B$75*G$73 -> 0.0922318714 | H74: 0.1322318714 | I74: 0.1722318714 | J74: 0.2122318714 | K74: 0.2522318714 | L74: 0.2922318714 | M74: 0.3322318714 | N74: 0.3722318714 | O74: 0.4122318714
A75: Crec. Credit. Empr. | B75: 0.04 | D75: Créditos a grandes empresas | E75: =VLOOKUP(D75,$D$6:$U$65,18,FALSE) -> 0.3918789275 | F75: =$E75+$B$75*F$73 -> 0.4318789275 | G75: 0.4718789275 | H75: 0.5118789275 | I75: 0.5518789275 | J75: 0.5918789275 | K75: 0.6318789275 | L75: 0.6718789275 | M75: 0.7118789275 | N75: 0.7518789275 | O75: 0.7918789275
D76: Créditos a medianas empresas | E76: 2.496173451 | F76: 2.536173451 | G76: 2.576173451 | H76: 2.616173451 | I76: 2.656173451 | J76: 2.696173451 | K76: 2.736173451 | L76: 2.776173451 | M76: 2.816173451 | N76: 2.856173451 | O76: 2.896173451
D77: Créditos pequeñas empresas | E77: 5.336236585 | F77: 5.376236585 | G77: 5.416236585 | H77: 5.456236585 | I77: 5.496236585 | J77: 5.536236585 | K77: 5.576236585 | L77: 5.616236585 | M77: 5.656236585 | N77: 5.696236585 | O77: 5.736236585
D78: Créditos a microempresas | E78: 2.689853387 | F78: 2.729853387 | G78: 2.769853387 | H78: 2.809853387 | I78: 2.849853387 | J78: 2.889853387 | K78: 2.929853387 | L78: 2.969853387 | M78: 3.009853387 | N78: 3.049853387 | O78: 3.089853387
D79: Créditos de consumo | E79: 2.982348435 | F79: =$E79+$B$74*F$73 -> 3.062348435 | G79: =$E79+$B$74*G$73 -> 3.142348435 | H79: 3.222348435 | I79: 3.302348435 | J79: 3.382348435 | K79: 3.462348435 | L79: 3.542348435 | M79: 3.622348435 | N79: 3.702348435 | O79: 3.782348435
D80: Créditos hipotecarios para vivienda | E80: 0.8217096608 | F80: =$E80+$B$74*F$73 -> 0.9017096608 | G80: 0.9817096608 | H80: 1.061709661 | I80: 1.141709661 | J80: =$E80+$B$74*J$73 -> 1.221709661 | K80: 1.301709661 | L80: 1.381709661 | M80: 1.461709661 | N80: 1.541709661 | O80: 1.621709661
D82: Morosidad (escenario optimista)
E83: 0 | F83: 1 | G83: 2 | H83: 3 | I83: 4 | J83: 5 | K83: 6 | L83: 7 | M83: 8 | N83: 9 | O83: 10
D84: Créditos corporativos | E84: =VLOOKUP(D84,$D$6:$U$65,2,FALSE) -> 0.002731066391 | F84: =$E84+$B$75*F$83 -> 0.04273106639 | G84: =$E84+$B$75*G$83 -> 0.08273106639 | H84: 0.1227310664 | I84: 0.1627310664 | J84: 0.2027310664 | K84: 0.2427310664 | L84: 0.2827310664 | M84: 0.3227310664 | N84: 0.3627310664 | O84: 0.4027310664
D85: Créditos a grandes empresas | E85: =VLOOKUP(D85,$D$6:$U$65,2,FALSE) -> 0.6833959002 | F85: =$E85+$B$75*F$83 -> 0.7233959002 | G85: 0.7633959002 | H85: 0.8033959002 | I85: 0.8433959002 | J85: 0.8833959002 | K85: 0.9233959002 | L85: 0.9633959002 | M85: 1.0033959 | N85: 1.0433959 | O85: 1.0833959
D86: Créditos a medianas empresas | E86: 2.008652452 | F86: 2.048652452 | G86: 2.088652452 | H86: 2.128652452 | I86: 2.168652452 | J86: 2.208652452 | K86: 2.248652452 | L86: 2.288652452 | M86: 2.328652452 | N86: 2.368652452 | O86: 2.408652452
D87: Créditos pequeñas empresas | E87: 3.554998089 | F87: 3.594998089 | G87: 3.634998089 | H87: 3.674998089 | I87: 3.714998089 | J87: 3.754998089 | K87: 3.794998089 | L87: 3.834998089 | M87: 3.874998089 | N87: 3.914998089 | O87: 3.954998089
D88: Créditos a microempresas | E88: 0.8063694592 | F88: 0.8463694592 | G88: 0.8863694592 | H88: 0.9263694592 | I88: 0.9663694592 | J88: 1.006369459 | K88: 1.046369459 | L88: 1.086369459 | M88: 1.126369459 | N88: 1.166369459 | O88: 1.206369459
D89: Créditos de consumo | E89: 2.175565371 | F89: =$E89+$B$74*F$83 -> 2.255565371 | G89: =$E89+$B$74*G$83 -> 2.335565371 | H89: 2.415565371 | I89: 2.495565371 | J89: 2.575565371 | K89: 2.655565371 | L89: 2.735565371 | M89: 2.815565371 | N89: 2.895565371 | O89: 2.975565371
D90: Créditos hipotecarios para vivienda | E90: 0.4676110569 | F90: =$E90+$B$74*F$83 -> 0.5476110569 | G90: 0.6276110569 | H90: 0.7076110569 | I90: 0.7876110569 | J90: 0.8676110569 | K90: 0.9476110569 | L90: 1.027611057 | M90: 1.107611057 | N90: 1.187611057 | O90: 1.267611057
D92: Morosidad (escenario pesimista)
E93: 0 | F93: 1 | G93: 2 | H93: 3 | I93: 4 | J93: 5 | K93: 6 | L93: 7 | M93: 8 | N93: 9 | O93: 10
D94: Créditos corporativos | E94: =VLOOKUP(D94,$D$6:$U$65,11,FALSE) -> 0 | F94: =$E94+$B$75*F$93 -> 0.04 | G94: =$E94+$B$75*G$93 -> 0.08 | H94: 0.12 | I94: 0.16 | J94: 0.2 | K94: 0.24 | L94: 0.28 | M94: 0.32 | N94: 0.36 | O94: 0.4
D95: Créditos a grandes empresas | E95: =VLOOKUP(D95,$D$6:$U$65,11,FALSE) -> 5.402075399 | F95: =$E95+$B$75*F$93 -> 5.442075399 | G95: 5.482075399 | H95: 5.522075399 | I95: 5.562075399 | J95: 5.602075399 | K95: 5.642075399 | L95: 5.682075399 | M95: 5.722075399 | N95: 5.762075399 | O95: 5.802075399
D96: Créditos a medianas empresas | E96: 7.52530768 | F96: 7.56530768 | G96: 7.60530768 | H96: 7.64530768 | I96: 7.68530768 | J96: 7.72530768 | K96: 7.76530768 | L96: 7.80530768 | M96: 7.84530768 | N96: 7.88530768 | O96: 7.92530768
D97: Créditos pequeñas empresas | E97: 5.274135062 | F97: 5.314135062 | G97: 5.354135062 | H97: 5.394135062 | I97: 5.434135062 | J97: 5.474135062 | K97: 5.514135062 | L97: 5.554135062 | M97: 5.594135062 | N97: 5.634135062 | O97: 5.674135062
D98: Créditos a microempresas | E98: 2.318490058 | F98: 2.358490058 | G98: 2.398490058 | H98: 2.438490058 | I98: 2.478490058 | J98: 2.518490058 | K98: 2.558490058 | L98: 2.598490058 | M98: 2.638490058 | N98: 2.678490058 | O98: 2.718490058
D99: Créditos de consumo | E99: =VLOOKUP(D99,$D$6:$U$65,12,FALSE) -> 3.384842766 | F99: =$E99+$B$74*F$93 -> 3.464842766 | G99: =$E99+$B$74*G$93 -> 3.544842766 | H99: 3.624842766 | I99: 3.704842766 | J99: 3.784842766 | K99: 3.864842766 | L99: 3.944842766 | M99: 4.024842766 | N99: 4.104842766 | O99: 4.184842766
D100: Créditos hipotecarios para vivienda | E100: =VLOOKUP(D100,$D$6:$U$65,12,FALSE) -> 2.454379837 | F100: =$E100+$B$74*F$93 -> 2.534379837 | G100: 2.614379837 | H100: 2.694379837 | I100: 2.774379837 | J100: 2.854379837 | K100: 2.934379837 | L100: 3.014379837 | M100: 3.094379837 | N100: 3.174379837 | O100: 3.254379837

Sheet Hoja2
C3: Morosidad (escenario base) | I3: Morosidad (escenario optimista) | O3: Morosidad (escenario pesimista)
C4: 0 | D4: 1 | E4: 2 | F4: 3 | G4: 4 | H4: 5 | I4: 0 | J4: 1 | K4: 2 | L4: 3 | M4: 4 | N4: 5 | O4: 0 | P4: 1 | Q4: 2 | R4: 3 | S4: 4 | T4: 5
B5: Créditos corporativos | C5: 0.0122318714 | D5: 0.0522318714 | E5: 0.0922318714 | F5: 0.1322318714 | G5: 0.1722318714 | H5: 0.2122318714 | I5: 0.002731066391 | J5: 0.04273106639 | K5: 0.08273106639 | L5: 0.1227310664 | M5: 0.1627310664 | N5: 0.2027310664 | O5: 0 | P5: 0.04 | Q5: 0.08 | R5: 0.12 | S5: 0.16 | T5: 0.2
B6: Créditos a grandes empresas | C6: 0.3918789275 | D6: 0.4318789275 | E6: 0.4718789275 | F6: 0.5118789275 | G6: 0.5518789275 | H6: 0.5918789275 | I6: 0.6833959002 | J6: 0.7233959002 | K6: 0.7633959002 | L6: 0.8033959002 | M6: 0.8433959002 | N6: 0.8833959002 | O6: 5.402075399 | P6: 5.442075399 | Q6: 5.482075399 | R6: 5.522075399 | S6: 5.562075399 | T6: 5.602075399
B7: Créditos a medianas empresas | C7: 2.496173451 | D7: 2.536173451 | E7: 2.576173451 | F7: 2.616173451 | G7: 2.656173451 | H7: 2.696173451 | I7: 2.008652452 | J7: 2.048652452 | K7: 2.088652452 | L7: 2.128652452 | M7: 2.168652452 | N7: 2.208652452 | O7: 7.52530768 | P7: 7.56530768 | Q7: 7.60530768 | R7: 7.64530768 | S7: 7.68530768 | T7: 7.72530768
B8: Créditos pequeñas empresas | C8: 5.336236585 | D8: 5.376236585 | E8: 5.416236585 | F8: 5.456236585 | G8: 5.496236585 | H8: 5.536236585 | I8: 3.554998089 | J8: 3.594998089 | K8: 3.634998089 | L8: 3.674998089 | M8: 3.714998089 | N8: 3.754998089 | O8: 5.274135062 | P8: 5.314135062 | Q8: 5.354135062 | R8: 5.394135062 | S8: 5.434135062 | T8: 5.474135062
B9: Créditos a microempresas | C9: 2.689853387 | D9: 2.729853387 | E9: 2.769853387 | F9: 2.809853387 | G9: 2.849853387 | H9: 2.889853387 | I9: 0.8063694592 | J9: 0.8463694592 | K9: 0.8863694592 | L9: 0.9263694592 | M9: 0.9663694592 | N9: 1.006369459 | O9: 2.318490058 | P9: 2.358490058 | Q9: 2.398490058 | R9: 2.438490058 | S9: 2.478490058 | T9: 2.518490058
B10: Créditos de consumo | C10: 2.982348435 | D10: 3.062348435 | E10: 3.142348435 | F10: 3.222348435 | G10: 3.302348435 | H10: 3.382348435 | I10: 2.175565371 | J10: 2.255565371 | K10: 2.335565371 | L10: 2.415565371 | M10: 2.495565371 | N10: 2.575565371 | O10: 3.384842766 | P10: 3.464842766 | Q10: 3.544842766 | R10: 3.624842766 | S10: 3.704842766 | T10: 3.784842766
B11: Créditos hipotecarios para vivienda | C11: 0.8217096608 | D11: 0.9017096608 | E11: 0.9817096608 | F11: 1.061709661 | G11: 1.141709661 | H11: 1.221709661 | I11: 0.4676110569 | J11: 0.5476110569 | K11: 0.6276110569 | L11: 0.7076110569 | M11: 0.7876110569 | N11: 0.8676110569 | O11: 2.454379837 | P11: 2.534379837 | Q11: 2.614379837 | R11: 2.694379837 | S11: 2.774379837 | T11: 2.854379837

Sheet Hoja3
